[Event "23rd Hoogeveen Open 2019"]
[Site "Hoogeveen"]
[Date "2019.10.22"]
[Round "5.29"]
[White "Faber, Hugo"]
[Black "Ricken, Katharina"]
[Result "1/2-1/2"]
[ECO "C09"]
[WhiteElo "2077"]
[BlackElo "1970"]
[Annotator "NA"]
[PlyCount "89"]
[EventDate "2019.10.19"]
[EventType "swiss"]
[EventCountry "NED"]
[SourceTitle "playchess.com"]
[Source "ChessBase"]
[SourceQuality "1"]
[TimeControl "40/5400+30:1800+30"]

{[%evp 19,90,15,32767,0,32767,32767,6,12,32767,-65,-56,-58,-11,32767,32767,32767,32767,32767,32767,-36,32767,-27,32767,-35,32767,32767,32767,-35,-28,-30,32767,32767,25,32767,18,19,25,19,20,15,47,10,78,0,11,1,32767,18,20,32767,32767,32,32767,0,32767,32767,187,28,32767,45,32767,32767,32767,32767,32767,32767,32767,0,32767,0,31,0,29]} 1. e4 {[%emt 0:00:00]} e6 {[%emt 0:00:00]} 2. d4 {[%emt 0:00:03]} d5 {[%emt 0:00:00]} 3. Nd2 {[%emt 0:00:19]} c5 {[%emt 0:00:00]} 4. exd5 {[%emt 0:01:12]} exd5 {[%emt 0:00:00]} 5. Bb5+ {[%emt 0:00:47]} Nc6 {[%emt 0:00:22]} 6. Ngf3 {[%emt 0:00:30]} Qe7+ {[%emt 0:00:06]} 7. Be2 {[%emt 0:00:34]} Qc7 {[%emt 0:00:04] C09: French Tarrasch: 3...c5 4 exd5 exd5 5 Ngf3 Nc6} 8. O-O {[%emt 0:02:08]} Nf6 {[%emt 0:00:02]} 9. Re1 {[%emt 0:08:29]} Be6 {[%emt 0:00:20]} (9... cxd4 10. Bb5+ Be7 11. Nxd4 O-O 12. N2f3 Nxd4 13. Nxd4 Bc5 14. c3 Qb6 15. a4 {½-½ (41) Timofeev,A (2602)-Zvjaginsev,V (2635) Sochi 2019}) 10. Bb5 {[%emt 0:02:51]} Be7 {[%emt 0:01:06]} 11. c3 $146 {[%emt 0:07:46]} (11. Bxc6+ $5 bxc6 12. Nb3 $11) ({Predecessor:} 11. dxc5 Bxc5 12. Nb3 Bb6 13. c4 dxc4 14. Bxc4 O-O 15. Bxe6 fxe6 {1-0 (50) Gunina,V (2497)-Zhang,X (2318) China 2018}) 11... O-O {[%emt 0:00:40]} 12. dxc5 {[%emt 0:08:25]} Bxc5 {[%emt 0:00:57]} 13. Nb3 {[%emt 0:00:14]} Bb6 {[%emt 0:00:09]} 14. Bxc6 {[%emt 0:05:23]} (14. Bg5 $11) 14... bxc6 {[%emt 0:00:18]} 15. Nbd4 {[%emt 0:00:32]} Rfe8 {[%emt 0:06:26]} 16. h3 {[%emt 0:08:17]} Ne4 {[%emt 0:08:36]} 17. Be3 {[%emt 0:05:46]} Rad8 {[%emt 0:05:22]} 18. Qc1 {[%emt 0:11:53]} c5 {[%emt 0:07:45]} 19. Bf4 {[%emt 0:06:16]} Qb7 {[%emt 0:02:53]} 20. Nxe6 {[%emt 0:01:03]} Rxe6 {[%emt 0:00:44]} 21. Ng5 {[%emt 0:01:56]} Nxg5 {[%emt 0:01:11]} 22. Bxg5 {[%emt 0:00:21]} Rde8 {[%emt 0:00:26]} 23. Qd2 {[%emt 0:00:34]} h6 {[%emt 0:02:56]} 24. Bf4 {[%emt 0:01:05]} Qe7 {[%emt 0:01:33]} 25. Kf1 {[%emt 0:03:46]} Re4 {[%emt 0:08:43]} (25... d4 $15) 26. f3 {[%emt 0:03:31]} Rxe1+ {[%emt 0:02:30]} 27. Rxe1 {[%emt 0:00:32]} Qxe1+ {[%emt 0:00:07]} 28. Qxe1 {[%emt 0:00:15]} Rxe1+ {[%emt 0:00:02]} 29. Kxe1 {[%emt 0:00:10]} f6 {[%emt 0:00:57]} 30. Ke2 {[%emt 0:00:42]} Kf7 {[%emt 0:00:12]} (30... c4 $1 $11) 31. Kd3 {[%emt 0:03:57]} Ke6 {[%emt 0:00:17]} 32. b3 {[%emt 0:01:11]} Kf5 {[%emt 0:01:38]} 33. Bd2 {[%emt 0:01:10]} Ke6 {[%emt 0:06:57]} 34. a4 {[%emt 0:01:05]} Ke5 {[%emt 0:06:39]} 35. c4 {[%emt 0:04:45]} Bc7 {[%emt 0:05:41]} 36. Be1 {[%emt 0:03:19]} Ke6 {[%emt 0:01:55]} 37. b4 {[%emt 0:03:42]} Bd6 $2 {[%emt 0:07:19] [#]} (37... cxb4 $11 {and Black is okay.} 38. Bxb4 h5) 38. b5 {[%emt 0:00:27]} ({White has to play} 38. Bf2 $1 $18) 38... Bc7 {[%emt 0:00:52]} 39. a5 {[%emt 0:00:40]} d4 {[%emt 0:01:18]} 40. a6 {[%emt 0:00:50]} f5 {[%emt 0:02:06]} 41. Bd2 {[%emt 0:04:08]} Ke5 {[%emt 0:03:12]} 42. Bc1 {[%emt 0:04:55]} Ke6 {[%emt 0:01:01]} 43. Bd2 {[%emt 0:03:30]} Ke5 {[%emt 0:00:24]} 44. Bc1 {[%emt 0:05:20]} Ke6 {[%emt 0:00:12]} 45. Bd2 {[%emt 0:00:17]} 1/2-1/2

[Event "23rd Hoogeveen Open 2019"]
[Site "Hoogeveen"]
[Date "2019.10.22"]
[Round "5.30"]
[White "Boersma, Jan"]
[Black "Slagboom, Leandro"]
[Result "1/2-1/2"]
[ECO "B53"]
[WhiteElo "2070"]
[BlackElo "1954"]
[Annotator "NA"]
[PlyCount "31"]
[EventDate "2019.10.19"]
[EventType "swiss"]
[EventCountry "NED"]
[SourceTitle "playchess.com"]
[Source "ChessBase"]
[SourceQuality "1"]
[TimeControl "40/5400+30:1800+30"]

1. e4 {[%emt 0:00:00]} c5 {[%emt 0:00:00]} 2. Nf3 {[%emt 0:00:00]} d6 {[%emt 0:00:00]} 3. d4 {[%emt 0:00:00]} cxd4 {[%emt 0:00:00]} 4. Qxd4 {[%emt 0:00:00]} a6 {[%emt 0:00:00]} 5. c4 {[%emt 0:00:58]} Nc6 {[%emt 0:00:11]} 6. Qd1 {[%emt 0:00:05]} Nf6 {[%emt 0:00:38]} 7. Nc3 {[%emt 0:00:05]} Bg4 {[%emt 0:00:51]} 8. Be2 {[%emt 0:00:06]} g6 {[%emt 0:00:30]} 9. O-O {[%emt 0:00:07]} Bg7 {[%emt 0:00:23]} 10. Be3 {[%emt 0:00:12]} O-O {[%emt 0:01:07]} 11. Ne1 {[%emt 0:00:32]} Bxe2 {[%emt 0:01:56]} 12. Qxe2 {[%emt 0:00:04]} Rc8 {[%emt 0:05:12]} 13. Rc1 {[%emt 0:02:14]} Nd7 {[%emt 0:14:37]} 14. Nf3 $11 {[%emt 0:10:46]} Qa5 {[%emt 0:29:25]} 15. Rfd1 {[%emt 0:06:39]} Qh5 {[%emt 0:05:41]} 16. b3 {[%emt 0:16:24]} 1/2-1/2

[Event "23rd Hoogeveen Open 2019"]
[Site "Hoogeveen"]
[Date "2019.10.22"]
[Round "5.33"]
[White "Nicolai, Amir"]
[Black "Klaren, Duncan"]
[Result "1-0"]
[ECO "E90"]
[WhiteElo "2117"]
[BlackElo "1923"]
[Annotator "ChessBase"]
[PlyCount "71"]
[EventDate "2019.10.19"]
[EventType "swiss"]
[EventCountry "NED"]
[SourceTitle "playchess.com"]
[Source "ChessBase"]
[SourceQuality "1"]
[TimeControl "40/5400+30:1800+30"]

1. c4 {[%emt 0:00:00]} Nf6 {[%emt 0:00:00]} 2. Nc3 {[%emt 0:00:00]} g6 {[%emt 0:00:00]} 3. e4 {[%emt 0:00:00]} d6 {[%emt 0:00:00]} 4. d4 {[%emt 0:00:00]} Bg7 {[%emt 0:00:04]} 5. h3 {[%emt 0:00:00]} O-O {[%emt 0:00:26]} 6. Be3 {[%emt 0:00:01]} c5 {[%emt 0:00:55]} 7. Nf3 {[%emt 0:00:06]} Nbd7 {[%emt 0:12:38]} 8. d5 {[%emt 0:06:41]} b5 {[%emt 0:05:22]} 9. cxb5 {[%emt 0:01:48]} Qa5 {[%emt 0:03:03]} 10. Nd2 {[%emt 0:02:42]} a6 {[%emt 0:05:00]} 11. a4 {[%emt 0:05:08]} axb5 {[%emt 0:02:23]} 12. Bxb5 {[%emt 0:00:53]} Ba6 {[%emt 0:05:00]} 13. O-O {[%emt 0:00:26]} Bxb5 {[%emt 0:01:01]} 14. Nxb5 {[%emt 0:03:25]} Nb6 {[%emt 0:03:10]} 15. b3 {[%emt 0:15:25]} Rfc8 {[%emt 0:16:14]} 16. Rc1 {[%emt 0:01:15]} Nfd7 {[%emt 0:02:43]} 17. Bg5 {[%emt 0:17:26]} Kf8 {[%emt 0:02:24]} 18. Qg4 {[%emt 0:04:57]} Ne5 {[%emt 0:22:30]} 19. Qh4 {[%emt 0:04:28]} f6 {[%emt 0:00:31]} 20. Qxh7 {[%emt 0:03:42]} fxg5 {[%emt 0:04:03]} 21. f4 {[%emt 0:00:23]} Nf7 {[%emt 0:00:31]} 22. fxg5 {[%emt 0:00:24]} Qxd2 {[%emt 0:05:12]} 23. Qxg6 {[%emt 0:08:29]} Kg8 {[%emt 0:00:24]} 24. Qxf7+ {[%emt 0:00:13]} Kh8 {[%emt 0:00:04]} 25. Qh5+ {[%emt 0:00:17]} Kg8 {[%emt 0:00:03]} 26. Kh1 {[%emt 0:13:02]} Rf8 {[%emt 0:03:53]} 27. Nc7 {[%emt 0:00:21]} Rxf1+ {[%emt 0:01:27]} 28. Rxf1 {[%emt 0:00:03]} Rf8 {[%emt 0:00:06]} 29. Rxf8+ {[%emt 0:00:19]} Bxf8 {[%emt 0:00:05]} 30. Qg6+ {[%emt 0:01:22]} Bg7 {[%emt 0:00:46]} 31. Ne6 {[%emt 0:00:16]} Qc3 {[%emt 0:00:51]} 32. a5 {[%emt 0:03:31]} Nc8 {[%emt 0:02:48]} 33. Qxg7+ {[%emt 0:01:23]} Qxg7 {[%emt 0:00:07]} 34. Nxg7 {[%emt 0:00:04]} Kxg7 {[%emt 0:00:24]} 35. h4 {[%emt 0:00:45]} Kg6 {[%emt 0:00:19]} 36. Kh2 {[%emt 0:00:40]} 1-0

[Event "23rd Hoogeveen Open 2019"]
[Site "Hoogeveen"]
[Date "2019.10.22"]
[Round "5.34"]
[White "Hoffman, Ron"]
[Black "Gijsen, William"]
[Result "1-0"]
[ECO "E61"]
[WhiteElo "1991"]
[BlackElo "2091"]
[Annotator "NA RC"]
[PlyCount "101"]
[EventDate "2019.10.19"]
[EventType "swiss"]
[EventCountry "NED"]
[SourceTitle "playchess.com"]
[Source "ChessBase"]
[SourceQuality "1"]
[TimeControl "40/5400+30:1800+30"]

1. Nf3 {[%emt 0:00:00]} c5 {[%emt 0:00:00]} 2. c4 {[%emt 0:00:00]} g6 {[%emt 0:00:13]} 3. Nc3 {[%emt 0:00:34]} Bg7 {[%emt 0:00:08]} 4. e3 {[%emt 0:00:22]} Nf6 {[%emt 0:00:59]} 5. d4 {[%emt 0:00:29]} cxd4 {[%emt 0:00:12]} 6. exd4 {[%emt 0:00:08]} O-O {[%emt 0:03:12]} 7. Bg5 {[%emt 0:10:36]} d6 {[%emt 0:07:50]} 8. Be2 {[%emt 0:01:51]} h6 {[%emt 0:06:36]} 9. Bh4 {[%emt 0:00:50]} Bg4 {[%emt 0:09:49]} 10. O-O {[%emt 0:15:10] E61: King's Indian: Early deviations for White, including Smyslov System} Nc6 {[%emt 0:04:46]} 11. d5 {[%emt 0:07:57]} Bxf3 {[%emt 0:00:26]} 12. Bxf3 {[%emt 0:00:15]} Ne5 {[%emt 0:00:21]} 13. Be2 {[%emt 0:00:35]} Rc8 {[%emt 0:00:44]} 14. b3 {[%emt 0:02:42]} Qa5 {[%emt 0:11:37]} 15. Nb5 $146 {[%emt 0:08:44]} ({Predecessor:} 15. Rc1 a6 16. f4 Ned7 17. Be1 Qa3 {1-0 (40) Hayrapetyan,H (2486)-Navarrete Espi,S (2214) Barbera del Valles 2013}) 15... g5 {[%emt 0:04:35]} 16. Bg3 {[%emt 0:06:34]} Ne4 {[%emt 0:00:28]} 17. Nd4 {[%emt 0:01:08]} Nd2 {[%emt 0:08:43]} 18. Nf5 {[%emt 0:13:16]} Nxf1 {[%emt 0:02:27]} 19. Nxe7+ {[%emt 0:01:47]} Kh8 {[%emt 0:00:43]} 20. Bxf1 {[%emt 0:01:37]} Rcd8 {[%emt 0:02:49]} (20... Ra8 $16 {keeps fighting.}) 21. Nf5 {[%emt 0:00:43]} Ng6 {[%emt 0:10:30]} 22. Bxd6 {[%emt 0:14:51]} Rxd6 {[%emt 0:04:38]} 23. Nxd6 {[%emt 0:00:16]} Bxa1 {[%emt 0:02:40]} 24. Qxa1+ {[%emt 0:00:06]} f6 {[%emt 0:00:13]} 25. Qb1 {[%emt 0:05:24]} Ne5 {[%emt 0:03:25]} 26. Nf5 {[%emt 0:03:48]} Qd2 {[%emt 0:01:23]} 27. Qe4 {[%emt 0:02:12]} Rf7 {[%emt 0:05:48]} 28. Nxh6 {[%emt 0:00:53]} Rh7 {[%emt 0:02:03]} 29. Ng4 {[%emt 0:00:34]} Nxg4 {[%emt 0:01:04]} 30. Qxg4 {[%emt 0:00:01]} Re7 {[%emt 0:00:10]} 31. Qf5 {[%emt 0:00:26]} Kg7 {[%emt 0:00:19]} 32. g3 {[%emt 0:00:09]} Qd4 {[%emt 0:00:58]} 33. Bd3 {[%emt 0:01:05]} Kf8 {[%emt 0:01:06] [#]} 34. Kg2 {[%emt 0:00:21]} (34. c5 $1 $18 Qxc5 35. Qxf6+ Ke8 36. Qxg5) 34... Qe5 {[%emt 0:01:15]} 35. Qxe5 {[%emt 0:01:05]} Rxe5 {[%emt 0:00:25]} 36. g4 {[%emt 0:00:51]} Re1 {[%emt 0:00:37]} 37. a4 {[%emt 0:00:24]} Ke7 {[%emt 0:01:17]} 38. c5 {[%emt 0:00:56]} a5 {[%emt 0:00:43]} 39. Kf3 {[%emt 0:00:00]} Rc1 {[%emt 0:01:04]} 40. Bc4 {[%emt 0:00:41]} Rc3+ $2 {[%emt 0:00:12]} (40... Rg1 $11 {and Black is okay.}) 41. Ke4 {[%emt 0:08:42]} Rh3 {[%emt 0:00:50]} 42. d6+ {[%emt 0:02:18]} Kd8 {[%emt 0:01:48]} 43. Bd5 {[%emt 0:01:11]} Rxh2 {[%emt 0:01:20]} 44. Bxb7 {[%emt 0:01:37]} Rxf2 {[%emt 0:00:41]} 45. c6 {[%emt 0:00:39]} f5+ {[%emt 0:03:10]} 46. gxf5 {[%emt 0:00:33]} Rc2 {[%emt 0:00:27]} 47. c7+ {[%emt 0:00:34]} Kd7 {[%emt 0:00:30]} 48. c8=Q+ {[%emt 0:00:35]} Rxc8 {[%emt 0:00:36]} 49. Bxc8+ {[%emt 0:00:10]} Kxc8 {[%emt 0:00:07]} 50. f6 {[%emt 0:00:16]} Kd7 {[%emt 0:00:34]} 51. f7 {[%emt 0:00:13]} 1-0

[Event "23rd Hoogeveen Open 2019"]
[Site "Hoogeveen"]
[Date "2019.10.22"]
[Round "5.37"]
[White "Taams, Sander"]
[Black "Vasse, Albert"]
[Result "1/2-1/2"]
[ECO "B31"]
[WhiteElo "2094"]
[BlackElo "1934"]
[Annotator "NA"]
[PlyCount "123"]
[EventDate "2019.10.19"]
[EventType "swiss"]
[EventCountry "NED"]
[SourceTitle "playchess.com"]
[Source "ChessBase"]
[SourceQuality "1"]
[TimeControl "40/5400+30:1800+30"]

1. e4 {[%emt 0:00:00]} c5 {[%emt 0:00:00]} 2. Nf3 {[%emt 0:00:00]} Nc6 {[%emt 0:00:00]} 3. Bb5 {[%emt 0:00:00]} g6 {[%emt 0:00:07]} 4. O-O {[%emt 0:00:48]} Bg7 {[%emt 0:00:41]} 5. Nc3 {[%emt 0:02:20]} d6 {[%emt 0:02:07]} 6. Bxc6+ {[%emt 0:01:09]} bxc6 {[%emt 0:00:09]} 7. Re1 {[%emt 0:01:53] B31: Sicilian: 2...Nc6 3 Bb5 g6} (7. e5 Bg4 8. exd6 exd6 9. h3 Bxf3 10. Qxf3 Ne7 11. d3 O-O 12. Bg5 Rb8 13. Rae1 Re8 14. Ne4 Qd7 {1-0 (32) Anand,V (2773)-Baron,T (2532) St Petersburg 2018}) 7... e5 {[%emt 0:01:12]} 8. a3 {[%emt 0:04:11]} Ne7 $146 {[%emt 0:03:35]} ({Predecessor:} 8... a5 9. Na4 Ne7 10. c3 Bg4 11. h3 Bxf3 12. Qxf3 O-O 13. d3 f5 14. Qe2 f4 {½-½ (50) Grimberg,G (2285)-Guilbert,H (2140) Clichy 2001}) 9. b4 {[%emt 0:01:12]} cxb4 {[%emt 0:00:51]} 10. axb4 {[%emt 0:00:06]} O-O {[%emt 0:00:29]} 11. d3 {[%emt 0:01:25]} Bg4 {[%emt 0:02:35]} 12. h3 {[%emt 0:01:11]} Be6 {[%emt 0:00:11]} 13. Be3 {[%emt 0:00:23]} Qd7 {[%emt 0:02:51]} 14. Ng5 {[%emt 0:01:09]} Rfb8 {[%emt 0:01:17]} 15. Nxe6 {[%emt 0:01:18]} Qxe6 {[%emt 0:04:17] [#]} 16. Ra4 $1 {[%emt 0:06:16]} Qd7 {[%emt 0:07:32]} 17. Qd2 {[%emt 0:01:30]} d5 {[%emt 0:03:19]} 18. Bc5 {[%emt 0:00:45]} d4 {[%emt 0:03:23]} 19. Ne2 {[%emt 0:00:27]} Nc8 {[%emt 0:02:31]} 20. Rea1 {[%emt 0:01:34]} Bf8 {[%emt 0:00:42]} 21. Bxf8 {[%emt 0:04:12]} Kxf8 {[%emt 0:00:10]} 22. Qh6+ {[%emt 0:00:55]} Kg8 {[%emt 0:00:14]} 23. Qg5 {[%emt 0:00:16]} Qd6 {[%emt 0:00:46]} 24. f4 {[%emt 0:00:34]} exf4 {[%emt 0:04:46]} 25. Nxf4 {[%emt 0:12:10]} Rb5 {[%emt 0:01:34]} 26. Qh4 {[%emt 0:02:05]} g5 {[%emt 0:00:56]} 27. Qh5 {[%emt 0:06:23]} gxf4 {[%emt 0:07:01]} ({Less strong is} 27... Qxf4 28. Rf1 $17) 28. Qg4+ {[%emt 0:00:08]} Kh8 {[%emt 0:00:12]} 29. Rf1 {[%emt 0:00:42]} Ne7 {[%emt 0:00:24]} 30. Rxf4 {[%emt 0:00:42]} Qe6 31. Qf3 {[%emt 0:00:30]} f5 32. g4 {[%emt 0:00:30]} fxg4 33. hxg4 {[%emt 0:00:30]} Rg5 34. Kf1 {[%emt 0:00:30]} Rag8 35. Rxa7 {[%emt 0:00:30]} R5g7 36. Rf6 {[%emt 0:00:30]} Qc8 37. g5 $2 {[%emt 0:00:30]} (37. Qf2 c5 38. bxc5 Qxc5 39. Ra8) 37... Qb8 {Double Attack} 38. Rd7 {[%emt 0:00:30]} Rxg5 39. Rfd6 {[%emt 0:00:30]} Qf8 40. Qf6+ {[%emt 0:00:30]} Qxf6+ 41. Rxf6 {[%emt 0:30:30]} Rg1+ 42. Ke2 {[%emt 0:00:30]} R1g2+ 43. Rf2 {[%emt 0:00:30]} Rxf2+ 44. Kxf2 {[%emt 0:00:30]} Re8 45. Rxd4 {[%emt 0:00:30]} Kg7 46. Rd6 {[%emt 0:00:30]} Rf8+ 47. Kg3 {[%emt 0:00:30]} Rf6 48. Rd7 {[%emt 0:00:30]} Kf7 49. d4 {[%emt 0:00:30]} Ke8 50. Ra7 {[%emt 0:00:30]} Rf1 51. c4 {[%emt 0:00:30]} Rd1 52. d5 {[%emt 0:00:30]} cxd5 53. exd5 {[%emt 0:00:30]} Rd4 54. b5 {[%emt 0:00:30]} Rxc4 55. b6 {[%emt 0:00:30]} Nf5+ 56. Kf3 {[%emt 0:00:30]} Nd6 57. Rxh7 {[%emt 0:00:30]} (57. b7 $11 Nxb7 58. Rxb7) 57... Rb4 $15 58. Rh8+ {[%emt 0:00:30]} Kd7 59. Rh7+ {[%emt 0:00:30]} Kc8 60. Rc7+ {[%emt 0:00:30]} Kb8 61. Rc6 {[%emt 0:00:30]} Nc4 62. Rh6 {[%emt 0:00:30]} 1/2-1/2

[Event "23rd Hoogeveen Open 2019"]
[Site "Hoogeveen"]
[Date "2019.10.23"]
[Round "6.2"]
[White "Werle, Jan"]
[Black "Beerdsen, Thomas"]
[Result "1/2-1/2"]
[ECO "D94"]
[WhiteElo "2544"]
[BlackElo "2472"]
[Annotator "RC"]
[PlyCount "113"]
[EventDate "2019.10.19"]
[EventType "swiss"]
[EventCountry "NED"]
[SourceTitle "playchess.com"]
[Source "ChessBase"]
[SourceQuality "1"]
[TimeControl "40/5400+30:1800+30"]

1. d4 {[%emt 0:00:00]} d5 {[%emt 0:00:00]} 2. c4 {[%emt 0:00:00]} c6 {[%emt 0:00:00]} 3. e3 {[%emt 0:00:42]} Nf6 {[%emt 0:00:00]} 4. Nc3 {[%emt 0:00:05]} g6 {[%emt 0:00:05]} 5. Nf3 {[%emt 0:00:38]} Bg7 {[%emt 0:00:06]} 6. Be2 {[%emt 0:00:30]} O-O {[%emt 0:00:11]} 7. O-O {[%emt 0:00:52]} dxc4 {[%emt 0:00:06]} 8. Bxc4 {[%emt 0:00:21]} Nbd7 {[%emt 0:00:06]} 9. Bb3 {[%emt 0:08:58]} b5 {[%emt 0:02:42]} 10. Re1 {[%emt 0:03:45]} Bb7 {[%emt 0:15:56]} 11. e4 {[%emt 0:06:36]} c5 {[%emt 0:12:17]} 12. e5 {[%emt 0:07:10]} Ne8 {[%emt 0:11:56]} 13. Ng5 {[%emt 0:15:25]} cxd4 {[%emt 0:13:35]} 14. Nxf7 {[%emt 0:07:27]} Rxf7 {[%emt 0:01:23]} 15. e6 {[%emt 0:03:19]} Nd6 {[%emt 0:03:27]} 16. exf7+ {[%emt 0:00:14]} Kh8 {[%emt 0:02:00]} 17. Nd5 {[%emt 0:02:41]} e5 {[%emt 0:01:58]} 18. Bd2 {[%emt 0:06:59]} a5 {[%emt 0:10:04]} 19. a4 {[%emt 0:08:21]} Nc4 {[%emt 0:02:43]} 20. Nf4 {[%emt 0:02:52]} Qg5 {[%emt 0:05:10]} 21. h4 {[%emt 0:01:28]} Qxh4 {[%emt 0:01:46]} 22. Nh3 {[%emt 0:07:13]} Nxd2 {[%emt 0:04:17]} 23. Qxd2 {[%emt 0:00:12]} Bf6 {[%emt 0:04:57]} 24. f3 {[%emt 0:09:53]} Kg7 {[%emt 0:03:13]} 25. Rac1 {[%emt 0:01:30]} e4 {[%emt 0:02:21]} 26. fxe4 {[%emt 0:00:20]} Qg3 {[%emt 0:00:57]} 27. Be6 {[%emt 0:01:49]} Nf8 {[%emt 0:01:31]} 28. Bd5 {[%emt 0:01:00]} Bxd5 {[%emt 0:00:19]} 29. exd5 {[%emt 0:00:04]} d3 {[%emt 0:00:20]} 30. Re4 {[%emt 0:00:51]} bxa4 {[%emt 0:00:58]} 31. Rf1 {[%emt 0:01:58]} Rb8 {[%emt 0:00:22]} 32. Rxf6 {[%emt 0:00:47]} Kxf6 {[%emt 0:00:06]} 33. Rf4+ {[%emt 0:00:13]} Kg7 {[%emt 0:00:35]} 34. Qc3+ {[%emt 0:00:45]} Kh6 {[%emt 0:00:04]} 35. Rf3 {[%emt 0:00:33]} Qd6 {[%emt 0:00:53]} 36. Nf2 {[%emt 0:00:15]} Rb4 {[%emt 0:00:55]} 37. Rh3+ {[%emt 0:00:39]} Kg5 {[%emt 0:00:05]} 38. Qxd3 {[%emt 0:00:44]} Qf4 {[%emt 0:00:49]} 39. Rg3+ {[%emt 0:01:03]} Kh6 {[%emt 0:00:22]} 40. Qc3 {[%emt 0:01:08]} Qd4 {[%emt 0:00:40]} 41. Qxd4 {[%emt 0:19:15]} Rxd4 {[%emt 0:00:05]} 42. Rd3 {[%emt 0:00:14]} Rxd3 {[%emt 0:10:33]} 43. Nxd3 {[%emt 0:00:04]} Kg7 {[%emt 0:00:05]} 44. Ne5 {[%emt 0:02:28]} Kf6 {[%emt 0:00:15]} 45. Nc6 {[%emt 0:00:08]} Kxf7 {[%emt 0:00:49]} 46. Nxa5 {[%emt 0:00:09]} Nd7 {[%emt 0:01:59]} 47. Nc4 {[%emt 0:00:16]} Nc5 {[%emt 0:01:26]} 48. Nb6 {[%emt 0:02:16]} Kf6 {[%emt 0:01:18]} 49. d6 {[%emt 0:02:30]} Ke6 {[%emt 0:02:52]} 50. d7 {[%emt 0:00:04]} Ke7 {[%emt 0:01:02]} 51. Kf1 {[%emt 0:01:21]} Nxd7 {[%emt 0:01:34]} 52. Kg1 {[%emt 0:00:15]} Ke6 53. Nxa4 {[%emt 0:00:04]} Kd5 54. Nc3+ {[%emt 0:00:03]} Kc4 {[%emt 0:00:01]} 55. Ne4 Kb3 {[%emt 0:00:04]} 56. Kf2 {[%emt 0:00:04]} Kxb2 {[%emt 0:00:01]} 57. Ke3 1/2-1/2

[Event "23rd Hoogeveen Open 2019"]
[Site "Hoogeveen"]
[Date "2019.10.23"]
[Round "6.7"]
[White "Kaasen, Tor Fredrik"]
[Black "Okkes, Menno"]
[Result "0-1"]
[ECO "B82"]
[WhiteElo "2415"]
[BlackElo "2326"]
[Annotator "ChessBase"]
[PlyCount "62"]
[EventDate "2019.10.19"]
[EventType "swiss"]
[EventCountry "NED"]
[SourceTitle "playchess.com"]
[Source "ChessBase"]
[SourceQuality "1"]
[TimeControl "40/5400+30:1800+30"]

1. e4 {[%emt 0:00:00]} c5 {[%emt 0:00:00]} 2. Nf3 {[%emt 0:00:29]} d6 {[%emt 0:00:00]} 3. d4 {[%emt 0:00:39]} cxd4 {[%emt 0:00:00]} 4. Nxd4 {[%emt 0:00:08]} Nf6 {[%emt 0:00:00]} 5. Nc3 {[%emt 0:00:09]} a6 {[%emt 0:00:00]} 6. Bd3 {[%emt 0:00:21]} e6 {[%emt 0:03:26]} 7. f4 {[%emt 0:01:20]} Qc7 {[%emt 0:00:15]} 8. Qe2 {[%emt 0:04:52]} Nbd7 {[%emt 0:00:50]} 9. g4 {[%emt 0:03:13]} Nc5 {[%emt 0:04:10]} 10. Bd2 {[%emt 0:07:47]} b5 {[%emt 0:06:31]} 11. g5 {[%emt 0:06:47]} Nfd7 {[%emt 0:00:07]} 12. Nd5 {[%emt 0:03:41]} exd5 {[%emt 0:02:55]} 13. exd5+ {[%emt 0:01:46]} Be7 {[%emt 0:10:22]} 14. Nc6 {[%emt 0:04:32]} Nb8 {[%emt 0:06:08]} 15. Ba5 {[%emt 0:02:22]} Nxd3+ {[%emt 0:01:09]} 16. cxd3 {[%emt 0:02:52]} Qd7 {[%emt 0:01:01]} 17. Kd2 {[%emt 0:16:56]} Nxc6 {[%emt 0:01:14]} 18. dxc6 {[%emt 0:00:15]} Qg4 {[%emt 0:23:03]} 19. Qf2 {[%emt 0:04:08]} O-O {[%emt 0:03:10]} 20. Bc3 {[%emt 0:03:48]} Re8 {[%emt 0:01:08]} 21. h4 {[%emt 0:02:12]} Qf5 {[%emt 0:07:42]} 22. Rag1 {[%emt 0:01:23]} Qd5 {[%emt 0:01:24]} 23. h5 {[%emt 0:09:54]} Bf5 {[%emt 0:02:20]} 24. Bd4 {[%emt 0:00:24]} Rac8 {[%emt 0:01:59]} 25. h6 {[%emt 0:03:02]} Bf8 {[%emt 0:01:40]} 26. Rc1 {[%emt 0:01:01]} Rxc6 {[%emt 0:01:15]} 27. Rxc6 {[%emt 0:04:11]} Qxc6 {[%emt 0:00:06]} 28. Rg1 {[%emt 0:00:40]} Rc8 {[%emt 0:02:47]} 29. Ke3 {[%emt 0:00:15]} Qc2 {[%emt 0:02:21]} 30. Qxc2 {[%emt 0:01:08]} Rxc2 {[%emt 0:00:04]} 31. Kf3 {[%emt 0:01:06]} Rd2 {[%emt 0:01:00]} 0-1